bitfinex/quotes_SOLUSD_20250706
["timestamp","ask_amount","ask_price","bid_price","bid_amount"]
[1751809525718,1.4011062,151.83,151.8,10.99069552]
[1751809526046,1.4011062,151.83,151.82,18.64964886]
[1751809526222,1.4011062,151.83,151.81,18.64964886]
[1751809526731,1.4011062,151.83,151.8,26.0]
[1751809526932,1.4011062,151.83,151.82,10.99069552]
[1751809527648,1.4011062,151.83,151.78,26.0]
[1751809527823,1.4011062,151.83,151.78,10.99069552]
[1751809528137,10.99069552,151.79,151.72,10.99069552]
[1751809528322,10.99069552,151.79,151.73,10.99069552]
[1751809528529,14.2006015,151.83,151.74,10.99069552]
[1751809528730,7.6142062,151.83,151.76,29.64034438]
[1751809528927,7.6142062,151.83,151.79,10.99069552]
[1751809528928,1.4011062,151.83,151.79,10.99069552]
[1751809529240,1.4011062,151.83,151.79,18.64964886]
[1751809529537,1.4011062,151.83,151.82,10.99069552]
[1751809529845,1.4011062,151.83,151.82,17.57744298]
[1751809530020,1.4011062,151.83,151.82,6.58674746]
[1751809530642,1.4011062,151.83,151.78,33.78]
[1751809530643,1.4011062,151.83,151.78,6.58848333]
[1751809530852,1.4011062,151.83,151.78,23.05969165]
[1751809531156,1.4011062,151.83,151.78,17.57917885]
[1751809531443,1.4011062,151.83,151.76,6.5893516]
[1751809531444,10.99069552,151.82,151.76,6.5893516]
[1751809531644,7.98744,151.83,151.76,6.5893516]
[1751809532022,7.9875043,151.83,151.76,6.5893516]
[1751809532229,1.4011062,151.83,151.77,29.64034438]
[1751809532548,1.4011062,151.83,151.79,10.99069552]
[1751809532725,1.4011062,151.83,151.77,18.64964886]
[1751809533143,1.4011062,151.83,151.79,10.99069552]
[1751809533659,1.4011062,151.83,151.81,10.99069552]
[1751809534142,0.1,151.86,151.82,10.99069552]
[1751809534446,0.1,151.86,151.85,10.99069552]
[1751809534641,7.6684,151.97,151.85,29.64034438]
[1751809534845,10.99069552,151.95,151.89,10.99069552]
[1751809535232,7.6684,151.97,151.85,18.64964886]
[1751809535433,7.6684,151.97,151.83,26.0]
[1751809535434,10.99069552,151.94,151.88,10.99069552]
[1751809535748,7.6684,151.97,151.84,18.64964886]
[1751809535749,10.99069552,151.91,151.84,18.64964886]
[1751809535922,10.99069552,151.9,151.84,6.58587987]
[1751809536242,0.8640351,151.9,151.84,6.58587987]
[1751809536941,10.99069552,151.89,151.84,6.58587987]
[1751809537240,0.8640351,151.9,151.82,6.58674746]
[1751809537446,10.99069552,151.88,151.83,10.99069552]
[1751809538018,10.99069552,151.88,151.83,17.57661058]
[1751809538219,7.44738256,151.9,151.83,17.57661058]
[1751809538445,10.99069552,151.88,151.83,17.57661058]
[1751809538744,7.44738256,151.9,151.83,17.57661058]
[1751809538745,0.8640351,151.9,151.83,6.58591506]
[1751809538929,0.8640351,151.9,151.84,18.64964886]
[1751809539134,0.8640351,151.9,151.87,10.99069552]
[1751809539342,0.8640351,151.9,151.86,10.99069552]
[1751809539537,0.8640351,151.9,151.84,18.64964886]
[1751809539538,11.85473062,151.9,151.84,10.99069552]
[1751809539729,0.8640351,151.9,151.86,10.99069552]
[1751809540133,0.8640351,151.9,151.88,6.58414537]
[1751809540334,0.8640351,151.9,151.88,17.57484089]
[1751809540529,0.8640351,151.9,151.85,35.1124709]
[1751809540530,0.8640351,151.9,151.87,6.58449719]
[1751809540731,0.8640351,151.9,151.87,17.57519271]
[1751809540951,0.8640351,151.9,151.87,6.58449719]
[1751809541253,0.8640351,151.9,151.86,6.58488535]
[1751809541559,11.85473062,151.9,151.86,6.58488535]
[1751809541756,0.8640351,151.9,151.82,16.46619331]
[1751809541947,11.85473062,151.9,151.85,10.99069552]
[1751809542131,0.8640351,151.9,151.85,10.99069552]
[1751809542331,0.8640351,151.9,151.83,42.4657841]
[1751809542548,0.8640351,151.9,151.85,10.99069552]
[1751809542746,11.85473062,151.9,151.83,42.4657841]
[1751809543038,0.8640351,151.9,151.84,10.99069552]
[1751809543247,0.8640351,151.9,151.85,10.99069552]
[1751809543752,0.8640351,151.9,151.84,18.64964886]
[1751809543967,0.8640351,151.9,151.87,10.99069552]
[1751809544168,0.8640351,151.9,151.88,6.58414537]
[1751809545356,0.8640351,151.9,151.85,16.46262556]
[1751809545548,0.8640351,151.9,151.86,17.57570803]
[1751809545743,0.8640351,151.9,151.86,34.0382393]
[1751809545949,0.8640351,151.9,151.87,10.99069552]
[1751809546155,0.8640351,151.9,151.88,6.58414537]
[1751809547741,0.8640351,151.9,151.88,17.57484089]
[1751809548379,0.8640351,151.9,151.88,6.58414537]
[1751809549151,0.8640351,151.9,151.87,6.58451792]
[1751809549349,0.8940351,151.9,151.87,6.58451792]
[1751809549655,0.8940351,151.9,151.87,17.57521344]
[1751809555662,0.8940351,151.9,151.87,6.58451792]
[1751809555871,0.8940351,151.9,151.88,10.99069552]
[1751809557064,0.8940351,151.9,151.87,6.58451792]
[1751809557065,0.8940351,151.9,151.87,17.57521344]
[1751809557271,0.8940351,151.9,151.88,10.99069552]
[1751809557570,0.8940351,151.9,151.89,10.99069552]
[1751809557875,7.6684,151.97,151.89,10.99069552]
[1751809558066,7.28121897,151.96,151.88,18.64964886]
[1751809558271,7.28121897,151.95,151.88,18.64964886]
[1751809558577,18.65909552,151.97,151.87,23.04596521]
[1751809558873,7.28491422,151.96,151.87,23.04596521]
[1751809559059,7.28491422,151.95,151.91,10.99069552]
[1751809559258,7.28490761,151.96,151.91,10.99069552]
[1751809559473,54.82778522,152.02,151.95,10.99069552]
[1751809559474,9.24255695,152.01,151.95,10.99069552]
[1751809559676,7.29011463,152.0,151.96,10.99069552]
[1751809559868,7.29011463,151.99,151.95,10.99069552]
[1751809560179,10.99069552,151.99,151.91,26.0]
[1751809560367,6.57817971,152.02,151.91,26.0]
[1751809560368,18.28694679,151.98,151.92,10.99069552]
[1751809560565,18.28694679,151.97,151.92,10.99069552]
[1751809560768,6.57817971,152.02,151.87,88.89175437]
[1751809560769,13.69075127,151.96,151.87,23.04596521]
[1751809561062,7.29625127,151.95,151.9,6.5831233]
[1751809561268,10.99069552,151.91,151.86,6.58501251]
[1751809561576,7.3046452,151.9,151.86,17.57570803]
[1751809561756,10.99069552,151.92,151.86,17.57570803]
[1751809561961,7.3057267,151.91,151.86,6.58501251]
[1751809562163,7.3057267,151.9,151.86,6.58501251]
[1751809562369,7.3057267,151.89,151.86,6.58501251]
[1751809562568,7.3057267,151.88,151.86,6.58501251]
[1751809562784,10.99069552,151.91,151.86,17.57570803]
[1751809562991,7.31151794,151.9,151.86,6.58501251]
[1751809563162,7.31151794,151.89,151.86,6.58501251]
[1751809563368,7.31664911,151.88,151.86,6.58501251]
[1751809563680,9.24255695,151.92,151.86,6.58501251]
[1751809563881,18.30747547,151.91,151.86,6.58501251]
[1751809564087,18.30747547,151.9,151.84,10.99069552]
[1751809564388,10.99069552,151.88,151.83,36.99069552]
[1751809564588,7.31677995,151.87,151.83,36.99069552]
[1751809564797,9.24255695,151.91,151.83,36.99069552]
[1751809564798,9.24255695,151.91,151.85,10.99069552]
[1751809565089,7.32258593,151.9,151.87,10.99069552]
[1751809565271,7.32258593,151.89,151.88,6.58414537]
[1751809565477,7.32258593,151.89,151.88,17.57484089]
[1751809565788,7.32680934,151.92,151.91,10.99069552]
[1751809565997,6.3945,151.96,151.91,10.99069552]
[1751809566175,6.3945,151.96,151.92,10.99069552]
[1751809566767,6.3945,151.96,151.88,30.80450881]
[1751809566969,9.24255695,151.99,151.95,10.99069552]
[1751809567184,10.99069552,151.96,151.88,30.80450881]
[1751809567363,10.99069552,151.9,151.83,6.58631364]
[1751809567559,10.99069552,151.87,151.83,6.58631364]
[1751809567967,6.2597,151.92,151.78,0.06]
[1751809567968,10.99069552,151.84,151.78,0.06]
[1751809568166,27.89220581,151.9,151.78,0.06]
[1751809568477,10.99069552,151.84,151.78,17.63915473]
[1751809568784,10.99069552,151.83,151.78,6.64845921]
[1751809568963,10.99069552,151.81,151.78,0.06]
[1751809569169,10.99069552,151.8,151.78,0.06]
[1751809569583,6.58551303,151.85,151.78,0.06]
[1751809570464,9.24255695,151.87,151.78,0.06]
[1751809570785,10.99069552,151.85,151.78,0.06]
[1751809570991,10.99069552,151.85,151.79,10.99069552]
[1751809571168,10.99069552,151.85,151.78,0.06]
[1751809571488,10.99069552,151.85,151.8,6.58761528]
[1751809571663,10.99069552,151.84,151.79,6.58796081]
[1751809571870,10.99069552,151.8,151.78,0.06]
[1751809572069,60.47678472,151.87,151.78,0.06]
[1751809572070,10.99069552,151.79,151.78,0.06]
[1751809572472,9.99069552,151.79,151.78,0.06]
[1751809573796,10.99069552,151.8,151.78,0.06]
[1751809573999,6.58665694,151.83,151.78,0.06]
[1751809574000,10.99069552,151.79,151.78,0.06]
[1751809575698,16.46400595,151.85,151.78,0.06]
[1751809575699,25.7065629,151.85,151.78,0.06]
[1751809575893,10.99069552,151.79,151.78,0.06]
[1751809577779,10.99069552,151.8,151.78,0.06]
[1751809577984,10.99069552,151.79,151.78,0.06]
[1751809578189,8.23214494,151.81,151.78,0.06]
[1751809578190,10.99069552,151.8,151.78,0.06]
[1751809579087,26.0,151.85,151.78,0.06]
[1751809579287,10.99069552,151.8,151.78,0.06]
[1751809580101,6.58587987,151.84,151.78,0.06]
[1751809580304,10.99069552,151.81,151.78,0.06]
[1751809580704,1.5304,151.86,151.78,0.06]
[1751809580917,10.99069552,151.85,151.79,10.99069552]
[1751809581102,12.52109552,151.86,151.8,10.99069552]
[1751809581407,17.25039552,151.88,151.83,10.99069552]
[1751809581906,10.99069552,151.86,151.78,0.06]
[1751809582209,10.99069552,151.85,151.79,10.99069552]
[1751809582391,10.99069552,151.85,151.8,6.58761528]
[1751809582903,6.2597,151.88,151.8,17.5783108]
[1751809582904,10.99069552,151.86,151.8,17.5783108]
[1751809583199,6.2597,151.88,151.8,6.58761528]
[1751809583390,10.99069552,151.86,151.8,6.58761528]
[1751809583584,10.99069552,151.85,151.8,6.58761528]
[1751809584492,12.84386692,151.88,151.8,6.58761528]
[1751809584684,10.99069552,151.85,151.8,6.58761528]
[1751809585004,6.2597,151.88,151.82,10.99069552]
[1751809585220,17.25039552,151.88,151.83,10.99069552]
[1751809585397,6.2597,151.88,151.82,10.99069552]
[1751809585604,17.25039552,151.88,151.82,10.99069552]
[1751809585783,6.2597,151.88,151.8,6.58761528]
[1751809585984,17.25039552,151.88,151.82,10.99069552]
[1751809586186,10.99069552,151.88,151.82,10.99069552]
[1751809586588,10.99069552,151.85,151.8,10.99069552]
[1751809587285,10.99069552,151.86,151.8,10.99069552]
[1751809587689,10.99069552,151.86,151.81,6.58718134]
[1751809588193,10.77295695,151.91,151.81,17.57787686]
[1751809588400,8.87133845,151.91,151.82,10.99069552]
[1751809588594,8.87133845,151.91,151.81,23.0551347]
[1751809588814,10.99069552,151.89,151.81,23.0551347]
[1751809589110,1.5304,151.91,151.82,10.99069552]
[1751809589285,10.99069552,151.9,151.84,10.99069552]
[1751809589484,1.5304,151.91,151.83,10.99069552]
[1751809589704,10.99069552,151.89,151.84,6.58587987]
[1751809589909,1.5304,151.91,151.81,10.99069552]
[1751809590099,10.99069552,151.87,151.81,10.99069552]
[1751809590295,10.99069552,151.89,151.83,10.99069552]
[1751809590513,10.99069552,151.9,151.8,26.0]
[1751809590714,12.52109552,151.91,151.82,26.0]
[1751809590916,8.11333754,151.91,151.82,26.0]
[1751809591091,10.99069552,151.87,151.81,10.99069552]
[1751809591294,10.99069552,151.9,151.84,10.99069552]
[1751809591495,10.99069552,151.92,151.86,10.99069552]
[1751809591699,7.76,151.94,151.88,6.58414537]
[1751809591700,14.34173622,151.94,151.88,6.58414537]
[1751809591916,10.99069552,151.92,151.88,6.58414537]
[1751809592220,1.6112,151.95,151.88,17.57484089]
[1751809592743,10.99069552,151.94,151.88,17.57484089]
[1751809592920,1.6112,151.95,151.89,10.99069552]
[1751809593095,6.2011,151.96,151.9,10.99069552]
[1751809593299,7.33733854,151.97,151.9,10.99069552]
[1751809593500,10.99069552,151.96,151.9,10.99069552]
[1751809594011,1.5419,151.99,151.91,6.5828451]
[1751809594208,10.99069552,151.96,151.91,6.5828451]
[1751809594713,10.99069552,151.93,151.87,27.45129258]
[1751809594908,18.64964886,151.98,151.86,10.99069552]
[1751809595100,7.33542367,151.97,151.86,10.99069552]
[1751809595292,10.99069552,151.93,151.86,23.04754378]
[1751809595712,10.99069552,151.92,151.86,34.0382393]
[1751809596021,10.99069552,151.92,151.86,23.04754378]
[1751809596211,10.99069552,151.92,151.87,10.99069552]
[1751809596415,18.64964886,151.98,151.87,10.99069552]
[1751809596612,10.99069552,151.93,151.87,10.99069552]
[1751809597114,10.99069552,151.92,151.86,6.58501251]
[1751809597318,10.99069552,151.92,151.86,17.57570803]
[1751809598225,6.58180134,151.94,151.86,17.57570803]
[1751809598394,10.99069552,151.93,151.87,10.99069552]
[1751809599017,10.99069552,151.94,151.88,10.99069552]
[1751809599314,10.99069552,151.93,151.87,10.99069552]
[1751809599816,6.58033123,151.97,151.86,23.04754378]
[1751809599817,10.99069552,151.92,151.86,17.57570803]
[1751809600418,10.99069552,151.89,151.86,6.58501251]
[1751809601104,10.99069552,151.9,151.86,6.58501251]
[1751809601511,16.45312411,151.95,151.86,6.58501251]
[1751809601718,10.99069552,151.9,151.86,6.58501251]
[1751809602110,10.99069552,151.89,151.85,6.5853155]
[1751809602310,10.99069552,151.89,151.82,24.22615674]
[1751809602311,10.99069552,151.88,151.83,6.58631364]
[1751809602518,6.0069,151.91,151.83,6.58631364]
[1751809602823,10.99069552,151.87,151.83,6.58631364]
[1751809603011,10.99069552,151.88,151.83,6.58631364]
[1751809603193,10.99069552,151.86,151.82,14.34662886]
[1751809603514,10.99069552,151.86,151.81,6.58718134]
[1751809605213,10.99069552,151.86,151.81,17.57787686]
[1751809605411,26.82872733,151.9,151.81,6.58718134]
[1751809605624,10.99069552,151.86,151.81,17.57787686]
[1751809605802,10.99069552,151.87,151.81,17.57787686]
[1751809606003,8.17907847,151.9,151.81,23.0551347]
[1751809606004,10.99069552,151.89,151.81,23.0551347]
[1751809606709,10.99069552,151.88,151.81,23.0551347]
[1751809607220,10.99069552,151.86,151.81,6.58718134]
[1751809607413,10.99069552,151.87,151.81,17.57787686]
[1751809607912,12.58984239,151.91,151.82,10.99069552]
[1751809608123,10.99069552,151.89,151.83,10.99069552]
[1751809608520,10.99069552,151.85,151.81,6.58718134]
[1751809609601,10.99069552,151.85,151.8,10.99069552]
[1751809610014,10.99069552,151.85,151.79,6.58804927]
[1751809610223,10.99069552,151.85,151.8,10.99069552]
[1751809610415,10.99069552,151.85,151.79,17.57874479]
[1751809610816,50.35621857,151.91,151.79,17.57874479]
[1751809610817,10.99069552,151.86,151.8,10.99069552]
[1751809611109,10.99069552,151.86,151.81,10.99069552]
[1751809611316,10.99069552,151.86,151.8,10.99069552]
[1751809611699,6.58327847,151.9,151.8,10.99069552]
[1751809611899,6.58327847,151.9,151.81,6.58718134]
[1751809611900,10.99069552,151.85,151.81,6.58718134]
[1751809613626,10.99069552,151.85,151.79,6.58804927]
[1751809613827,10.99069552,151.84,151.79,17.57874479]
[1751809614127,6.58474543,151.87,151.79,6.58804927]
[1751809614327,13.93993731,151.87,151.79,6.58804927]
[1751809614831,13.93993731,151.87,151.78,11.05069552]
[1751809614832,7.35519188,151.86,151.78,6.64835983]
[1751809615005,27.51674074,151.85,151.78,0.06]
[1751809615205,10.99069552,151.79,151.78,0.06]
[1751809616026,6.3062,151.82,151.78,0.06]
[1751809616328,10.99069552,151.79,151.78,0.06]
[1751809616538,10.75445695,151.85,151.78,11.05069552]
[1751809616837,24.93040267,151.84,151.78,17.63910095]
[1751809617137,10.99069552,151.83,151.78,17.63910095]
[1751809617332,10.99069552,151.84,151.78,17.63910095]
[1751809617537,10.99069552,151.83,151.78,6.64840543]
[1751809617707,18.64964886,151.85,151.78,0.06]
[1751809618029,7.35446962,151.84,151.78,0.06]
[1751809618729,10.99069552,151.79,151.78,0.06]
[1751809620525,44.52255695,151.84,151.78,0.06]
[1751809620727,10.99069552,151.79,151.78,0.06]
[1751809621216,18.34793242,151.79,151.78,0.06]
[1751809621639,10.99069552,151.79,151.78,0.06]
[1751809622036,1.5119,151.81,151.78,0.06]
[1751809622229,13.94302533,151.82,151.78,0.06]
[1751809622441,10.99069552,151.81,151.78,0.06]
[1751809624037,10.99069552,151.79,151.78,0.06]
[1751809624248,17.57874479,151.79,151.78,0.06]
[1751809624743,24.93443957,151.79,151.78,0.06]
[1751809625543,18.3463903,151.79,151.78,0.06]
[1751809625745,17.57874479,151.79,151.78,0.06]
[1751809625920,24.93201846,151.79,151.78,0.06]
[1751809626443,10.99069552,151.79,151.78,0.06]
[1751809627554,17.57874479,151.79,151.78,0.06]
[1751809627742,43.57723188,151.79,151.78,0.06]
[1751809627933,32.58653636,151.79,151.78,0.06]
[1751809628250,93.80065507,151.79,151.7,0.2]
[1751809628435,10.99069552,151.71,151.7,0.2]
[1751809628942,37.39364438,151.71,151.7,0.2]
[1751809629132,44.7424634,151.71,151.7,0.2]
[1751809629530,86.6139867,151.71,151.7,0.2]
[1751809630442,26.0,151.74,151.7,0.2]
[1751809630645,10.99069552,151.71,151.7,0.2]
[1751809631256,15.43575695,151.76,151.7,0.2]
[1751809631455,10.99069552,151.71,151.7,0.2]
[1751809631752,18.64964886,151.73,151.7,0.2]
[1751809631957,10.99069552,151.71,151.7,0.2]
[1751809633136,18.3080524,151.71,151.7,0.2]
[1751809633454,17.58221882,151.71,151.7,0.2]
[1751809634544,36.23186768,151.71,151.7,0.2]
[1751809634732,26.0,151.74,151.7,0.2]
[1751809634936,10.99069552,151.72,151.7,0.2]
[1751809635152,10.99069552,151.72,151.7,6.79187949]
[1751809635357,10.99069552,151.72,151.7,0.2]
[1751809635853,10.99069552,151.71,151.7,0.2]
[1751809636427,25.23943469,151.75,151.7,0.2]
[1751809636655,10.99069552,151.71,151.7,0.2]
[1751809636836,38.78262418,151.76,151.7,0.2]
[1751809637034,10.99069552,151.72,151.7,0.2]
[1751809637249,10.99069552,151.71,151.7,0.2]
[1751809637930,36.23186768,151.71,151.7,0.2]
[1751809638134,43.53101796,151.71,151.7,0.2]
[1751809638561,24.8813691,151.71,151.7,0.2]
[1751809638859,24.87965885,151.71,151.7,0.2]
[1751809639156,36.23186768,151.71,151.7,0.2]
[1751809639557,43.52923516,151.71,151.7,0.2]
[1751809640060,17.58221882,151.71,151.7,0.2]
[1751809641063,43.5290503,151.71,151.7,0.2]
[1751809643542,10.99069552,151.71,151.7,0.2]
[1751809643868,43.52926859,151.71,151.7,0.2]
[1751809644379,51.26926859,151.71,151.7,0.2]
[1751809644563,6.59195781,151.7,151.69,0.06]
[1751809644869,6.59037093,151.74,151.69,0.06]
[1751809645177,9.3001,151.77,151.69,11.05069552]
[1751809645334,7.74,151.77,151.7,10.99069552]
[1751809645538,10.99069552,151.76,151.7,10.99069552]
[1751809645946,10.99069552,151.76,151.71,10.99069552]
[1751809646159,18.73069552,151.77,151.71,10.99069552]
[1751809646358,6.5856,151.8,151.71,10.99069552]
[1751809646541,10.99069552,151.8,151.74,10.99069552]
[1751809646753,10.99069552,151.79,151.75,6.58978583]
[1751809647052,6.5872264,151.81,151.74,6.59008368]
[1751809647255,10.99069552,151.76,151.73,6.59052763]
[1751809647760,10.99069552,151.77,151.73,6.59052763]
[1751809648559,10.99069552,151.77,151.72,6.59108884]
[1751809650464,10.99069552,151.79,151.73,10.99069552]
[1751809650966,10.99069552,151.79,151.72,6.59108884]
[1751809651156,10.99069552,151.78,151.72,17.58178436]
[1751809651546,10.99069552,151.78,151.69,23.13337331]
[1751809651745,10.99069552,151.78,151.72,10.99069552]
[1751809652277,10.99069552,151.79,151.73,10.99069552]
[1751809652807,8.17404845,151.82,151.73,10.99069552]
[1751809653075,10.99069552,151.79,151.73,10.99069552]
[1751809653280,10.99069552,151.78,151.73,10.99069552]
[1751809653776,10.99069552,151.81,151.75,10.99069552]
[1751809654067,10.99069552,151.82,151.77,10.99069552]
[1751809654260,10.99069552,151.82,151.74,31.22877039]
[1751809654462,20.23424886,151.86,151.74,31.22877039]
[1751809654463,10.99069552,151.83,151.77,10.99069552]
[1751809654859,10.99069552,151.82,151.76,10.99069552]
[1751809655042,36.06195203,151.86,151.74,14.75322011]
[1751809655043,10.99069552,151.8,151.74,14.75322011]
[1751809655247,10.99069552,151.82,151.76,10.99069552]
[1751809655661,10.99069552,151.82,151.77,6.58891744]
[1751809655862,10.99069552,151.78,151.74,6.59009587]
[1751809656168,10.99069552,151.75,151.72,6.59108884]
[1751809656347,10.99069552,151.76,151.72,6.59108884]
[1751809656953,10.99069552,151.76,151.71,6.5915233]
[1751809657161,6.58718134,151.81,151.72,10.99069552]
[1751809657367,10.99069552,151.78,151.72,10.99069552]
[1751809657656,7.33554515,151.77,151.71,6.5915233]
[1751809657857,7.33554515,151.8,151.71,17.58221882]
[1751809658181,10.99069552,151.77,151.71,34.06102707]
[1751809658381,10.99069552,151.78,151.72,10.99069552]
[1751809658570,18.32948233,151.77,151.71,23.07033155]
[1751809658881,10.99069552,151.76,151.71,6.5915233]
[1751809659264,15.82973829,151.81,151.71,6.5915233]
[1751809659265,10.99069552,151.75,151.71,6.5915233]
[1751809660754,6.58761528,151.8,151.7,12.77758555]
[1751809660755,10.99069552,151.74,151.7,12.77758555]
[1751809660974,18.64964886,151.79,151.7,12.77758555]
[1751809661175,32.29921043,151.8,151.7,12.77758555]
[1751809661176,10.99069552,151.75,151.7,12.77758555]
[1751809661571,10.99069552,151.78,151.72,10.99069552]
[1751809661770,9.24255695,151.8,151.7,29.25748007]
[1751809661771,10.99069552,151.79,151.73,10.99069552]
[1751809661985,7.34408431,151.78,151.73,10.99069552]
[1751809662373,7.34408431,151.78,151.74,6.59022011]
[1751809662567,18.33477983,151.78,151.74,6.59022011]
[1751809662769,9.24255695,151.82,151.74,6.59022011]
[1751809662976,13.9334183,151.81,151.74,6.59022011]
[1751809663280,18.33693248,151.8,151.74,17.58091563]
[1751809663478,7.34623696,151.79,151.74,6.59022011]
[1751809663661,10.99069552,151.79,151.74,6.59022011]
[1751809664070,10.99069552,151.78,151.74,6.59022011]
[1751809664271,10.99069552,151.78,151.73,6.59065445]
[1751809664470,10.99069552,151.77,151.73,6.59065445]
[1751809665063,10.99069552,151.78,151.73,17.58134997]
[1751809665275,10.99069552,151.79,151.74,10.99069552]
[1751809665470,9.24255695,151.83,151.74,10.99069552]
[1751809665678,7.34822698,151.82,151.74,10.99069552]
[1751809665876,10.99069552,151.8,151.74,10.99069552]
[1751809666072,7.34823027,151.79,151.74,10.99069552]
[1751809666285,11.02069552,151.79,151.73,34.05798609]
[1751809668492,11.02069552,151.79,151.74,10.99069552]
[1751809668704,0.03,151.79,151.76,10.99069552]
[1751809669205,0.03,151.79,151.73,16.47663612]
[1751809669412,0.03,151.79,151.76,10.99069552]
[1751809670281,0.03,151.79,151.75,10.99069552]
[1751809670491,0.03,151.79,151.76,6.5893516]
[1751809670893,0.03,151.79,151.76,17.58004712]
[1751809672480,0.03,151.79,151.78,10.99069552]
[1751809672993,0.03,151.79,151.78,17.05079552]
[1751809673912,0.03,151.87,151.79,0.5695]
[1751809674076,0.03,151.87,151.84,10.99069552]
[1751809674275,10.99069552,151.86,151.81,6.58718134]
[1751809674588,10.99069552,151.85,151.81,6.58718134]
[1751809675381,6.61481447,151.87,151.81,6.58718134]
[1751809675698,10.99069552,151.85,151.81,6.58718134]
[1751809675885,10.99069552,151.82,151.74,6.0601]
[1751809676084,10.99069552,151.78,151.72,10.99069552]
[1751809676694,10.99069552,151.79,151.73,10.99069552]
[1751809677073,10.99069552,151.79,151.74,6.59022011]
[1751809677480,6.58587987,151.84,151.74,6.59022011]
[1751809677799,10.99069552,151.79,151.74,6.59022011]
[1751809678875,6.58587987,151.84,151.74,6.59022011]
[1751809679195,10.99069552,151.79,151.74,6.59022011]
[1751809680194,10.99069552,151.77,151.74,6.59022011]
[1751809680501,10.99069552,151.79,151.74,6.59022011]
[1751809680684,10.99069552,151.79,151.74,17.58091563]
[1751809680885,8.163522,151.81,151.73,6.59053834]
[1751809681091,10.99069552,151.77,151.73,6.59053834]
[1751809681494,10.99069552,151.78,151.73,6.59053834]
[1751809682396,6.58779629,151.8,151.72,6.59108884]
[1751809682595,10.99069552,151.78,151.73,10.99069552]
[1751809683397,6.58779629,151.8,151.72,10.99069552]
[1751809683599,10.99069552,151.79,151.74,10.99069552]
[1751809683991,8.16351704,151.81,151.73,10.99069552]
[1751809684190,10.99069552,151.79,151.73,10.99069552]
[1751809684381,10.99069552,151.79,151.74,6.59022011]
[1751809685102,8.16351704,151.81,151.74,6.59022011]
[1751809685292,10.99069552,151.79,151.74,6.59022011]
[1751809686326,10.99069552,151.79,151.73,10.99069552]
[1751809686906,14.21091149,151.78,151.73,6.8454671]
[1751809687206,6.8454671,151.78,151.72,6.8454671]
[1751809687903,14.21688472,151.78,151.72,6.8454671]
[1751809688100,6.8454671,151.78,151.72,6.8454671]
[1751809688308,6.8454671,151.78,151.73,6.59065445]
[1751809688613,7.37197542,151.78,151.73,13.43612155]
[1751809688819,7.37197542,151.8,151.73,13.43612155]
[1751809689112,7.37197542,151.79,151.73,13.43612155]
[1751809689310,7.37197542,151.78,151.73,13.43612155]
[1751809689487,7.37197542,151.77,151.75,6.8454671]
[1751809689689,7.37197542,151.8,151.75,6.8454671]
[1751809689915,7.37197542,151.79,151.78,6.8454671]
[1751809690113,6.8454671,151.86,151.78,6.8454671]
[1751809690279,7.38140774,151.85,151.8,6.8454671]
[1751809690481,7.38140774,151.84,151.8,6.8454671]
[1751809690710,7.38140774,151.83,151.79,6.8454671]
[1751809690913,7.38333762,151.82,151.76,6.5893516]
[1751809691114,15.77049715,151.86,151.77,6.8454671]
[1751809691115,6.8454671,151.83,151.77,6.8454671]
[1751809691312,7.3831745,151.82,151.77,6.8454671]
[1751809691484,7.3831745,151.81,151.77,6.8454671]
[1751809691684,7.3831745,151.82,151.77,6.8454671]
[1751809691911,6.8454671,151.83,151.74,26.0]
[1751809691912,7.3831745,151.81,151.74,26.0]
[1751809692095,6.8454671,151.83,151.78,6.8454671]
[1751809692096,7.3831745,151.82,151.78,6.8454671]
[1751809692295,7.3831745,151.81,151.77,6.8454671]
[1751809692497,7.3831745,151.82,151.77,6.8454671]
[1751809692702,7.3831745,151.81,151.77,6.8454671]
[1751809692904,7.3831745,151.82,151.77,6.8454671]
[1751809693105,7.3831745,151.81,151.78,6.58848333]
[1751809693298,7.3831745,151.82,151.78,6.58848333]
[1751809693494,6.8454671,151.83,151.78,6.58848333]
[1751809693702,7.38285961,151.82,151.78,6.58848333]
[1751809693893,6.8454671,151.83,151.78,6.58848333]
[1751809693894,7.38286454,151.81,151.78,6.58848333]
[1751809694087,7.38286454,151.82,151.78,6.58848333]
[1751809694419,6.8454671,151.8,151.69,0.06]
[1751809694717,6.8454671,151.78,151.72,6.8454671]
[1751809695011,14.22814377,151.78,151.72,6.8454671]
[1751809695199,6.8454671,151.78,151.72,13.43655594]
[1751809695512,6.8454671,151.78,151.72,6.59108884]
[1751809695713,14.23044963,151.78,151.72,13.43655594]
[1751809696012,6.8454671,151.78,151.72,13.43655594]
[1751809696421,14.23116335,151.78,151.72,13.43655594]